lending/lending_fUSD_20241120
["ID","MTS","AMOUNT","RATE_DAILY","PERIOD"]
[342760224,1732115442513,-3160.44475213,0.0005,50]
[342760226,1732115442525,-6529.15957795,0.0005,50]
[342760229,1732115442538,-340.02642936,0.0005,50]
[342760231,1732115442551,-39970.36924056,0.0005,50]
[342760233,1732115442561,-1130.69,0.0005,120]
[342760235,1732115442571,-8000.0,0.0005,2]
[342760237,1732115442581,-3287.91578915,0.0005,30]
[342760239,1732115442590,-1534.19421347,0.0005,60]
[342760241,1732115442604,-2605.386282,0.0005,5]
[342760243,1732115442614,-122530.25679858,0.0005,120]
[342760245,1732115442626,-30001.39279,0.0005,120]
[342760247,1732115442637,-39992.39352,0.0005,120]
[342760250,1732115442650,-407.23254277,0.0005,120]
[342760289,1732115442997,-3022.92522577,0.0005,120]
[342760291,1732115443008,-1413.97819055,0.0005,120]
[342760294,1732115443020,-1558.74999999,0.0005,120]
[342760299,1732115443039,-500.0,0.00041096,2]
[342760301,1732115443049,-75.501587,0.0005,120]
[342760304,1732115443060,-3600.78553988,0.0005,120]
[342760307,1732115443071,-374.8688,0.0005,120]
[342760310,1732115443083,-2716.66522628,0.0005,120]
[342760385,1732115443644,-1093.0,0.00025911,2]
[342760387,1732115443654,-3799.26,0.00034887,10]
[342760389,1732115443663,-664.6,0.00042944,60]
[342760391,1732115443673,-150.0,0.00049312,7]
[342760393,1732115443683,-150.0,0.00049435,7]
[342760395,1732115443693,-150.0,0.00049518,7]
[342760397,1732115443703,-150.0,0.00049538,7]
[342760399,1732115443712,-150.0,0.00049552,7]
[342760401,1732115443722,-6296.26252499,0.0005,120]
[342760403,1732115443732,-482.09799651,0.0005,120]
[342760405,1732115443741,-1128.75087059,0.0005,2]
[342760407,1732115443751,-3947.99662907,0.0005,2]
[342760409,1732115443761,-1234.72485778,0.0005,120]
[342760411,1732115443770,-836.20616879,0.0005,120]
[342760413,1732115443780,-992.83936681,0.0005,120]
[342760415,1732115443789,-3879.10855212,0.0005,120]
[342760417,1732115443798,-151.71452743,0.0005,120]
[342760419,1732115443808,-500.0,0.0005,30]
[342760421,1732115443817,-90463.66972537,0.0005,120]
[342760422,1732115443826,-5528.56164978,0.0005,60]
[342760423,1732115443837,-50729.74009847,0.0005,120]
[342760424,1732115443849,-4430.60037674,0.0005,120]
[342760425,1732115443861,-406.42811069,0.0005,120]
[342760426,1732115443894,-150.0,0.00049336,7]
[342760427,1732115443903,-150.0,0.00049393,7]
[342760429,1732115443913,-1050.90100024,0.0005,120]
[342760432,1732115443924,-572.5386038,0.0005,120]
[342760439,1732115443990,-330.5380943,0.0005,120]
[342760445,1732115444030,-150.0,0.00041528,2]
[342760447,1732115444039,-150.0,0.00049477,7]
[342760449,1732115444049,-2921.10000002,0.0005,120]
[342760451,1732115444060,-768.3,0.0005,120]
[342760474,1732115444271,-500.0,0.00042385,2]
[342760476,1732115444281,-150.0,0.00049423,7]
[342760478,1732115444290,-150.0,0.00049443,7]
[342760480,1732115444300,-150.0,0.00049543,7]
[342760482,1732115444309,-472.20509851,0.0005,120]
[342760484,1732115444326,-11499.64468343,0.0005,120]
[342760486,1732115444335,-151.0,0.0005,120]
[342760489,1732115444345,-8187.59787097,0.0005,120]
[342760491,1732115444360,-400.0,0.0005,120]
[342760493,1732115444370,-1050.0,0.0005,120]
[342760495,1732115444379,-1000.0,0.0005,15]
[342760497,1732115444388,-36388.35028711,0.0005,120]
[342760499,1732115444401,-1101.075001,0.0005,120]
[342760633,1732115446397,-941.06292,0.00042944,60]
[342760634,1732115446408,-500.0,0.00043259,2]
[342760635,1732115446417,-800.0,0.00045,120]
[342760636,1732115446426,-150.0,0.00049287,7]
[342760637,1732115446435,-150.0,0.00049288,7]
[342760638,1732115446444,-150.0,0.00049291,7]
[342760639,1732115446453,-55.23764386,0.00049292,7]
[342760640,1732115446599,-150.0,0.00042385,2]
[342760641,1732115446612,-94.76235614,0.00049292,7]
[342760642,1732115446622,-150.0,0.00049305,7]
[342760643,1732115446631,-150.0,0.00049306,7]
[342760644,1732115446641,-150.0,0.00049308,7]
[342760645,1732115446650,-150.0,0.00049308,7]
[342760646,1732115446658,-150.0,0.00049314,7]
[342760647,1732115446668,-150.0,0.00049317,7]
[342760648,1732115446677,-150.0,0.00049323,7]
[342760649,1732115446687,-150.0,0.00049324,7]
[342760650,1732115446696,-150.0,0.00049325,7]
[342760651,1732115446706,-150.0,0.00049338,7]
[342760652,1732115446715,-150.0,0.00049342,7]
[342760653,1732115446724,-150.0,0.00049343,7]
[342760654,1732115446733,-150.0,0.00049345,7]
[342760655,1732115446743,-150.0,0.00049346,7]
[342760656,1732115446752,-150.0,0.00049362,7]
[342760657,1732115446762,-150.0,0.00049363,7]
[342760658,1732115446771,-150.0,0.00049368,7]
[342760659,1732115446780,-150.0,0.00049369,7]
[342760660,1732115446790,-150.0,0.00049371,7]
[342760661,1732115446799,-150.0,0.00049376,7]
[342760662,1732115446808,-150.0,0.00049377,7]
[342760663,1732115446818,-150.0,0.00049382,7]
[342760664,1732115446828,-150.0,0.00049384,7]
[342760665,1732115446837,-150.0,0.00049388,7]
[342760666,1732115446846,-150.0,0.00049389,7]
[342760667,1732115446861,-150.0,0.00049389,7]
[342760668,1732115446871,-150.0,0.00049389,7]
[342760669,1732115446880,-150.0,0.00049392,7]
[342760670,1732115446890,-150.0,0.000494,7]
[342760671,1732115446900,-150.0,0.00049401,7]
[342760672,1732115446910,-150.0,0.00049406,7]
[342760673,1732115446920,-150.0,0.00049408,7]
[342760674,1732115446931,-150.0,0.00049415,7]
[342760675,1732115446942,-150.0,0.00049416,7]
[342760676,1732115446953,-150.0,0.00049418,7]
[342760677,1732115446963,-150.0,0.00049436,7]
[342760678,1732115446974,-150.0,0.00049442,7]
[342760679,1732115446984,-150.0,0.00049444,7]
[342760680,1732115446994,-150.0,0.00049447,7]
[342760681,1732115447004,-150.0,0.00049455,7]
[342760682,1732115447014,-150.0,0.00049459,7]
[342760683,1732115447024,-150.0,0.00049464,7]
[342760684,1732115447034,-150.0,0.00049467,7]
[342760685,1732115447044,-150.0,0.00049468,7]
[342760686,1732115447054,-150.0,0.00049476,7]
[342760687,1732115447063,-150.0,0.00049477,7]
[342760688,1732115447073,-150.0,0.0004948,7]
[342760689,1732115447082,-150.0,0.00049481,7]
[342760690,1732115447092,-150.0,0.00049482,7]
[342760691,1732115447107,-150.0,0.00049493,7]
[342760692,1732115447117,-150.0,0.00049493,7]
[342760693,1732115447127,-150.0,0.00049496,7]
[342760694,1732115447138,-150.0,0.00049497,7]
[342760695,1732115447147,-150.0,0.00049497,7]
[342760696,1732115447157,-150.0,0.00049501,7]
[342760697,1732115447167,-150.0,0.00049505,7]
[342760698,1732115447178,-150.0,0.00049509,7]
[342760699,1732115447188,-150.0,0.00049512,7]
[342760700,1732115447198,-150.0,0.00049512,7]
[342760701,1732115447208,-150.0,0.00049521,7]
[342760702,1732115447218,-150.0,0.00049521,7]
[342760703,1732115447228,-150.0,0.00049524,7]
[342760704,1732115447238,-150.0,0.00049525,7]
[342760705,1732115447247,-150.0,0.00049526,7]
[342760706,1732115447258,-150.0,0.0004953,7]
[342760707,1732115447268,-150.0,0.0004953,7]
[342760708,1732115447278,-150.0,0.00049533,7]
[342760709,1732115447288,-150.0,0.00049536,7]
[342760710,1732115447298,-150.0,0.00049538,7]
[342760711,1732115447307,-150.0,0.00049544,7]
[342760712,1732115447319,-150.0,0.00049548,7]
[342760713,1732115447330,-150.0,0.00049551,7]
[342760714,1732115447340,-150.0,0.00049552,7]
[342760715,1732115447350,-150.0,0.00049552,7]
[342760716,1732115447365,-150.0,0.00049553,7]
[342760717,1732115447375,-150.0,0.00049555,7]
[342760718,1732115447386,-150.0,0.00049555,7]
[342760719,1732115447396,-150.0,0.00049557,7]
[342760720,1732115447406,-150.0,0.00049804,7]
[342760721,1732115447417,-150.0,0.00049902,7]
[342760722,1732115447428,-11448.74954276,0.0005,120]
[342760723,1732115447438,-20669.0,0.0005,30]
[342760724,1732115447449,-800.0,0.0005,120]
[342760725,1732115447459,-1829099.24865443,0.0005,120]
[342760726,1732115447470,-2000.0,0.0005,30]
[342760727,1732115447481,-4652.0,0.0005,120]
[342760728,1732115447492,-3000.0,0.0005,120]
[342760729,1732115447502,-508.4,0.0005,120]
[342760730,1732115447513,-200.84643634,0.0005,30]
[342760731,1732115447522,-4612.0,0.0005,4]
[342760732,1732115447532,-5000.48541839,0.0005,5]
[342760733,1732115447542,-500.0,0.0005,14]
[342760734,1732115447552,-500.0,0.0005,30]
[342760735,1732115447562,-500.0,0.0005,14]
[342760736,1732115447572,-500.0,0.0005,30]
[342760737,1732115447583,-500.0,0.0005,30]
[342760738,1732115447593,-500.0,0.0005,30]
[342760739,1732115447607,-500.0,0.0005,30]
[342760740,1732115447622,-150.0,0.0005,120]
[342760741,1732115447633,-1250.0,0.0005,10]
[342760742,1732115447643,-200.0,0.0005,60]
[342760743,1732115447653,-156.96,0.0005,120]
[342760744,1732115447664,-22033.90552885,0.0005,120]
[342760745,1732115447678,-1609.49447115,0.0005,120]
[342760746,1732115447689,-12500.0,0.0005,120]
[342760747,1732115447699,-539.59,0.0005,120]
[342760748,1732115447710,-12500.0,0.0005,120]
[342760749,1732115447720,-10551.39166617,0.0005,120]
[342760750,1732115447733,-901.8010246,0.0005,120]
[342760751,1732115447746,-1046.80730923,0.0005,120]
[342760752,1732115447757,-1743.67123559,0.0005,120]
[342760753,1732115447785,-150.0,0.00049381,7]
[342760754,1732115447795,-150.0,0.0004999,7]
[342760755,1732115447805,-200.0,0.0005,120]
[342760756,1732115447818,-10556.32876441,0.0005,120]
[342760757,1732115447828,-151.0,0.00050055,120]
[342760758,1732115447838,-2000.0,0.00050058,7]
[342760759,1732115447848,-200.0,0.00050058,7]
[342760760,1732115447858,-200.0,0.00050058,7]
[342760761,1732115447868,-12500.0,0.0005025,120]
[342760762,1732115447878,-11369.53215852,0.0005025,120]
[342760763,1732115447890,-1130.46784148,0.0005025,120]
[342760764,1732115447900,-3830.11550298,0.0005025,120]
[342760765,1732115447961,-500.0,0.00042999,31]
[342760766,1732115447971,-500.0,0.0004346,60]
[342760767,1732115447980,-150.0,0.00049314,7]
[342760768,1732115447991,-150.0,0.00049735,7]
[342760769,1732115448001,-121.19,0.0005,30]
[342760770,1732115448014,-29.022,0.0005,30]
[342760771,1732115448024,-8669.88449702,0.0005025,120]
[342760772,1732115448035,-150.0,0.000503,120]
[342760773,1732115448045,-150.0,0.000503,120]
[342760774,1732115448055,-968.98,0.00050335,117]
[342760775,1732115448065,-2107.08,0.000505,120]
[342760776,1732115448075,-12500.0,0.000505,120]
[342760777,1732115448085,-12500.0,0.000505,120]
[342760778,1732115448095,-2000.0,0.00050558,7]
[342760779,1732115448109,-200.0,0.00050558,7]
[342760780,1732115448121,-163.54632226,0.00050558,7]
[342760781,1732115448132,-12500.0,0.0005075,120]
[342760782,1732115448144,-12500.0,0.0005075,120]
[342760783,1732115448154,-216.2907989,0.000509,120]
[342760784,1732115448164,-2400.0,0.000509,18]
[342760785,1732115448174,-170.818801,0.00050998,30]
[342760786,1732115448185,-50000.0,0.00051,51]
[342760787,1732115448195,-150.0,0.00051,120]
[342760788,1732115448205,-600.0,0.00051,2]
[342760789,1732115448216,-600.0,0.00051,2]
[342760790,1732115448226,-9286.09898683,0.00051,120]
[342760791,1732115448295,-150.0,0.0004935,7]
[342760792,1732115448306,-2950.0,0.00051,120]
[342760793,1732115448319,-263.90101317,0.00051,120]
[342760794,1732115448332,-2726.54090029,0.00051,120]
[342760795,1732115448344,-2773.45896293,0.00051,120]
[342760796,1732115448363,-7000.00013678,0.00051,120]
[342760797,1732115448375,-195.85656904,0.00051057,120]
[342760798,1732115448385,-200.0,0.00051064,7]
[342760799,1732115448396,-483.27743706,0.00051072,10]
[342760800,1732115448408,-158.92,0.0005109,30]
[342760801,1732115448418,-1000.0,0.000511,120]
[342760802,1732115448428,-22841.34939148,0.000511,120]
[342760803,1732115448441,-464.71082159,0.000511,120]
[342760804,1732115449835,-150.0,0.00049464,7]
[342760805,1732115449845,-150.0,0.00049496,7]
[342760806,1732115449860,-150.0,0.00049519,7]
[342760807,1732115449873,-150.0,0.00049725,7]
[342760808,1732115449883,-150.0,0.00049726,7]
[342760809,1732115449894,-150.0,0.00049817,7]
[342760810,1732115449903,-150.0,0.00049844,7]
[342760811,1732115449913,-150.0,0.00049859,7]
[342760812,1732115449924,-150.0,0.00049878,7]
[342760813,1732115449934,-150.0,0.00049882,7]
[342760814,1732115449944,-150.0,0.00049952,7]
[342760815,1732115449953,-3079.05,0.000511,120]
[342760816,1732115449965,-5633.40222844,0.000511,120]
[342760817,1732115449981,-500.0,0.00044,57]
[342760818,1732115449991,-67981.48755849,0.000511,120]
[342760819,1732115450000,-13749.0,0.00051172,117]
[342760820,1732115450010,-8662.95938209,0.0005125,120]
[342760821,1732115450021,-3837.04061791,0.0005125,120]
[342760822,1732115450032,-4378.07,0.0005125,120]
[342760823,1732115450042,-200.0,0.000513,120]
[342760824,1732115450051,-200.0,0.000513,120]
[342760825,1732115450060,-208.0,0.0005131,30]
[342760826,1732115450070,-3000.0,0.0005132,74]
[342760827,1732115450079,-197.09,0.00051441,2]
[342760828,1732115450089,-12500.0,0.000515,120]
[342760829,1732115450099,-215.0,0.0005156,30]
[342760830,1732115450112,-200.0,0.00051574,7]
[342760831,1732115450121,-12500.0,0.0005175,120]
[342760832,1732115450131,-2566.88,0.000518,90]
[342760833,1732115450140,-155.51,0.00051836,2]
[342760834,1732115450150,-29170.79638222,0.0005188,30]
[342760835,1732115450162,-9047.0,0.0005188,30]
[342760836,1732115450186,-150.0,0.00043259,2]
[342760837,1732115450196,-2452.14330272,0.0005188,30]
[342760838,1732115450207,-17733.76114202,0.0005188,30]
[342760839,1732115450303,-2096.90264524,0.0005188,30]
[342760840,1732115450316,-17105.01956594,0.0005188,30]
[342760841,1732115450334,-10535.6001,0.0005188,30]
[342760842,1732115450523,-1890.68,0.0005188,30]
[342760845,1732115721843,1000.0,0.00026,60]
[342760848,1732116320836,3410.69984117,9e-05,2]
[342760849,1732116338316,12471.77495553,8e-05,2]
[342760851,1732116357282,1910.53609152,9.336e-05,2]
[342760852,1732116396009,-156.75,0.00015342,2]
[342760853,1732116396032,-150.0,0.00016862,2]
[342760854,1732116396055,-564.0,0.00018115,2]
[342760855,1732116431203,200.0,9.6e-05,2]
[342760856,1732116434145,-166.68314278,0.000249,2]
[342760857,1732116434166,-192.7301308,0.00026,2]
[342760858,1732116434188,-150.0,0.00027374,2]
[342760859,1732116434210,-156.75,0.00028858,2]
[342760860,1732116434232,-156.52,0.000335,31]
[342760861,1732116434252,-450.520328,0.000345,120]
[342760862,1732116434272,-2036.78,0.00034618,2]
[342760863,1732116434291,-299.99,0.00034618,30]
[342760864,1732116434311,-1242.21930109,0.00034618,10]
[342760865,1732116447262,-692.48497055,0.00033332,2]
[342760866,1732116450100,-3832.86172303,0.00033332,2]
[342760867,1732116472294,13429.25,0.0002,4]
[342760868,1732116483368,5211.94198559,0.0001,2]
[342760869,1732116509191,1976995.04712619,0.0001,2]
[342760891,1732116632210,-756.43989339,9.95e-05,2]
[342760892,1732116632350,-1155.86205061,9.95e-05,2]
[342760893,1732116632360,-150.0,9.999e-05,2]
[342760894,1732116632369,-250.0274167,0.0001,2]
[342760895,1732116632378,-18284.18960615,0.0001,2]
[342760899,1732116632929,-376.0,0.0001,2]
[342760902,1732116632945,-943.6353794,0.0001,2]
[342760904,1732116632957,-27905.35442386,0.0001,2]
[342760909,1732116633006,-372.57,0.0001,2]
[342760911,1732116638221,-1325.1572416,0.0001,2]
[342760918,1732116638279,-42096989.4639013,0.0001,2]
[342760919,1732116638291,-3998374.24,0.0001,2]
[342760920,1732116638334,-1734.95697171,0.0001,2]
[342760921,1732116638349,-2265.88258717,0.0001,2]
[342760922,1732116638509,-2222.2349995,0.0001,2]
[342760923,1732116638674,-3909.92861306,0.0001,2]
[342760946,1732116640413,-2443.19994606,0.0001,2]
[342760947,1732116640425,-450.00477559,0.0001,2]
[342760948,1732116640436,-3609.64677418,0.0001,2]
[342761060,1732116643908,-27022.0134063,0.0001,2]
[342761061,1732116643919,-27554.21212371,0.0001,2]
[342761062,1732116643932,-74476.50245983,0.0001,2]
[342761063,1732116643944,-207623.65773791,0.0001,2]
[342761064,1732116643956,-377.652,0.0001,2]
[342761065,1732116643967,-5367.75018937,0.0001,2]
[342761066,1732116643981,-10495.53844172,0.0001,2]
[342761068,1732116643992,-385.2533363,0.0001,2]
[342761070,1732116644002,-355592.9238444,0.0001,2]
[342761077,1732116644400,-3.00530887,0.0001,2]
[342761078,1732116644411,-7302.62556398,0.0001,2]
[342761082,1732116646197,-637.59686912,0.0001,2]
[342761083,1732116646250,-3776.7914874,0.0001,2]
[342761084,1732116646262,-519.14852251,0.0001,2]
[342761085,1732116646273,-396.71437261,0.0001,2]
[342761086,1732116646298,-11831.971066,0.0001,2]
[342761087,1732116646309,-2112.68946204,0.0001,2]
[342761088,1732116646455,-1609.05,0.0001,2]
[342761089,1732116646509,-90496.90823045,0.0001,2]
[342761090,1732116646557,-3454.89981,0.0001,2]
[342761091,1732116646568,-3121.6628,0.0001,2]
[342761092,1732116646580,-3215.5548,0.0001,2]
[342761093,1732116646609,-139348.29177071,0.0001,2]
[342761094,1732116646620,-37191.318,0.0001,2]
[342761095,1732116646631,-847.02187699,0.0001,2]
[342761196,1732116683666,-14397.0,0.0001,2]
[342761197,1732116720778,-762.8317,9.9e-05,2]
[342761198,1732116720840,-762.8317,9.999e-05,2]
[342761199,1732116720855,-1474.3366,9.999e-05,2]
[342761203,1732116803728,-150.0,9.899e-05,2]
[342761204,1732116803751,-11446.9195,9.9e-05,2]
[342761205,1732116803775,-26502.3618,9.9e-05,2]
[342761206,1732116803799,-751.8985,9.9e-05,2]
[342761207,1732116803822,-12067.8255,9.9e-05,2]
[342761208,1732116803844,-671.9989,9.9e-05,2]
[342761209,1732116803866,-416.0,9.973e-05,2]
[342761210,1732116803889,-73915.15405041,9.999e-05,2]
[342761211,1732116803918,-874077.84174959,0.0001,2]
[342761213,1732116926381,266.0,0.00025999,60]
[342761214,1732117363615,156.12,0.00016658,30]
[342761215,1732117524003,150.0,0.00026,60]
[342761216,1732117534152,-3224.92322998,9.66e-05,2]
[342761217,1732117534174,-7668.18581752,9.8e-05,2]
[342761218,1732117627862,1200.0,9.1e-05,3]
[342761219,1732117629989,2400.0,9.2e-05,3]
[342761220,1732117632097,3600.0,9.3e-05,3]
[342761221,1732117634197,4800.0,9.4e-05,3]
[342761222,1732117636311,6000.0,9.5e-05,3]
[342761223,1732117638840,1200.0,9.6e-05,3]
[342761224,1732117640538,1200.0,9.7e-05,3]
[342761225,1732117641114,-441.61188248,9.8e-05,2]
[342761226,1732117641138,-2500.0,9.8e-05,2]
[342761227,1732117641161,-300.0,9.898e-05,2]
[342761228,1732117641183,-12623.40088548,9.899e-05,2]
[342761229,1732117641206,-150.0,9.899e-05,2]
[342761230,1732117641228,-670.45857805,9.9e-05,2]
[342761231,1732117642665,1200.0,9.8e-05,3]
[342761232,1732117644780,371.0,9.9e-05,3]
[342761233,1732117647129,-14661.32625621,9.9e-05,2]
[342761234,1732117649640,-786.23824003,9.9e-05,2]
[342761247,1732117806342,2470.41,8.219e-05,2]
[342761258,1732117832396,-1636.2122,9.8e-05,2]
[342761259,1732117832406,-5999.26433032,9.8e-05,2]
[342761261,1732117832653,-2229.03466968,9.8e-05,2]
[342761262,1732117832662,-4866.0,9.801e-05,2]
[342761263,1732117832672,-164.6,9.87e-05,2]
[342761264,1732117832681,-300.0,9.899e-05,2]
[342761265,1732117832690,-150.0,9.899e-05,2]
[342761266,1732117832699,-54950.36533032,9.9e-05,2]
[342761267,1732117832710,-472.795,9.9e-05,2]
[342761268,1732117832722,-61200.03913876,9.9e-05,2]
[342761269,1732117832733,-546.70831491,9.9e-05,2]
[342761270,1732117832961,-922.22742899,9.9e-05,2]
[342761271,1732117832972,-861.82814056,9.9e-05,2]
[342761292,1732117833279,-59554.3024761,9.9e-05,2]
[342761300,1732117833356,-23122.84017595,9.9e-05,2]
[342761317,1732117833523,-1520.17439098,9.9e-05,2]
[342761456,1732117838442,-1215.40923805,9.9e-05,2]
[342761457,1732117838551,-7399.49668611,9.9e-05,2]
[342761458,1732117838563,-35329.68930498,9.9e-05,2]
[342761459,1732117838572,-1000.0,9.9e-05,2]
[342761460,1732117838582,-829.0,9.9e-05,3]
[342761461,1732117838591,-250.0,9.955e-05,2]
[342761462,1732117838600,-711.27,9.955e-05,2]
[342761463,1732117838610,-150.0,9.973e-05,2]
[342761464,1732117838620,-1028.71469502,9.99e-05,2]
[342761465,1732117838631,-1421.81125266,9.99e-05,2]
[342761466,1732117838641,-2450.52594761,9.99e-05,2]
[342761467,1732117838650,-2450.52594761,9.99e-05,2]
[342761468,1732117838659,-2450.52594761,9.99e-05,2]
[342761469,1732117838668,-2450.52594761,9.99e-05,2]
[342761470,1732117838677,-2450.52594761,9.99e-05,2]
[342761471,1732117838687,-2450.52594761,9.99e-05,2]
[342761472,1732117838696,-2450.52594761,9.99e-05,2]
[342761473,1732117838705,-2450.52594761,9.99e-05,2]
[342761474,1732117838715,-165.16388387,0.0001,2]
[342761475,1732117838724,-3977183.05728259,0.0001,2]
[342761476,1732117838735,-1118.94582766,0.0001,2]
[342761477,1732117838947,-1210.34544982,0.0001,2]
[342761478,1732117838958,-2403.78704119,0.0001,2]
[342761479,1732117838969,-255561.79313021,0.0001,2]
[342761480,1732117839006,-13705.13649632,0.0001,2]
[342761481,1732117839017,-5132.34000663,0.0001,2]
[342761482,1732117839029,-9054.08670844,0.0001,2]
[342761483,1732117839042,-2997.55856019,0.0001,2]
[342761484,1732117839055,-2499.43900765,0.0001,2]
[342761486,1732117839066,-1994.57184064,0.0001,2]
[342761490,1732117839105,-945700.0,0.0001,2]
[342761491,1732117839117,-300.44867664,0.0001,2]
[342761492,1732117839149,-1169.55400002,0.0001,2]
[342761502,1732117840553,-1344.63519216,0.0001,2]
[342761503,1732117840565,-350.23355961,0.0001,2]
[342761504,1732117840577,-6511.03772364,0.0001,2]
[342761505,1732117840588,-5329.633115,0.0001,2]
[342761506,1732117840600,-1078.48200007,0.0001,2]
[342761507,1732117840611,-1421.95343035,0.0001,2]
[342761508,1732117840622,-294.71320003,0.0001,2]
[342761509,1732117840634,-6943.45791234,0.0001,2]
[342761510,1732117840703,-1017.62906883,0.0001,2]
[342761511,1732117840714,-601.71300565,0.0001,2]
[342761512,1732117840726,-3178.70446731,0.0001,2]
[342761513,1732117840737,-5335.87056232,0.0001,2]
[342761528,1732117843555,-1039084.50000004,0.0001,2]
[342761529,1732117843567,-4523.55927521,0.0001,2]
[342761530,1732117843579,-3935.47249719,0.0001,2]
[342761531,1732117843590,-5736.39843764,0.0001,2]
[342761532,1732117843602,-312.19310994,0.0001,2]
[342761533,1732117843613,-302.02069069,0.0001,2]
[342761534,1732117843625,-3792.97760677,0.0001,2]
[342761535,1732117843635,-5338.45575464,0.0001,2]
[342761536,1732117843647,-5289.65691701,0.0001,2]
[342761537,1732117843659,-4926.78317474,0.0001,2]
[342761538,1732117843681,-14999.40000187,0.0001,2]
[342761542,1732117843789,-485.305,0.0001,2]
[342761544,1732117843800,-469.68973,0.0001,2]
[342761545,1732117843812,-20809.1764867,0.0001,2]
[342761547,1732117843823,-35305.23360127,0.0001,2]
[342761549,1732117843834,-36596.79159589,0.0001,2]
[342761551,1732117843846,-31345.02971897,0.0001,2]
[342761552,1732117843862,-5832.83136702,0.0001,2]
[342761553,1732117843874,-9459.99999999,0.0001,2]
[342761554,1732117843886,-1278.6,0.0001,2]
[342761555,1732117843901,-490.32001699,0.0001,2]
[342761556,1732117843913,-284.1509994,0.0001,2]
[342761557,1732117843924,-783867.8956836,0.0001,2]
[342761558,1732117843943,-56834.05835414,0.0001,2]
[342761559,1732117843954,-97373.86419465,0.0001,2]
[342761560,1732117843966,-600.0,0.0001,2]
[342761561,1732117843978,-59622.22799634,0.0001,2]
[342761562,1732117843990,-29350.10039466,0.0001,2]
[342761563,1732117844001,-763.43869,0.0001,2]
[342761564,1732117844012,-36818.29999992,0.0001,2]
[342761568,1732117846395,-1629.03625083,0.0001,2]
[342761569,1732117846407,-7455.084476,0.0001,2]
[342761570,1732117846418,-6244.11583316,0.0001,2]
[342761571,1732117846449,-3878.641,0.0001,2]
[342761572,1732117846461,-13633.94420672,0.0001,2]
[342761573,1732117846473,-425.52999708,0.0001,2]
[342761574,1732117846484,-835.63432,0.0001,2]
[342761575,1732117846496,-8967.98020212,0.0001,2]
[342761576,1732117846509,-32894.34514501,0.0001,2]
[342761577,1732117846612,-889.76888,0.0001,2]
[342761578,1732117846626,-4460.0,0.0001,2]
[342761579,1732117846638,-2836.17,0.0001,2]
[342761580,1732117846651,-75738.39181368,0.0001,2]
[342761581,1732117846671,-3730.89184302,0.0001,2]
[342761582,1732117846684,-1892.295,0.0001,2]
[342761583,1732117846696,-23769.6268,0.0001,2]
[342761584,1732117846709,-16730.1396,0.0001,2]
[342761585,1732117846721,-4295.05,0.0001,2]
[342761591,1732118045231,151.64,0.00016658,30]
[342761592,1732118152876,-200.0,9.6e-05,2]
[342761593,1732118152906,-23454.3569,9.8e-05,2]
[342761594,1732118152934,-1692.03,9.855e-05,2]
[342761595,1732118152962,-250.0,9.885e-05,2]
[342761596,1732118152991,-5183.1001,9.9e-05,2]
[342761597,1732118153021,-2500.0,9.9e-05,2]
[342761598,1732118153052,-150.0,9.999e-05,2]
[342761599,1732118153089,-1966570.513,0.0001,2]
[342761601,1732118597059,2346.88,8.219e-05,2]
[342761602,1732118832185,-1739.58563969,9.335e-05,2]
[342761603,1732118854111,-217.98174796,9.335e-05,2]
[342761604,1732118856819,151.64,0.00016658,30]